Cogmind - Beta 12 @@@ ROGUE MODE // 2023.07.21 @ 12:57:10 Player: ZOT Result: Destroyed by G-47 Trooper with Particle Gun Performance ------------- Evolutions (2) 1000 Regions Visited (4) 800 Robots Destroyed (29) 145 Value Destroyed (813) 813 Prototype IDs (4) 80 Alien Tech Used (0) 0 Bonus (35) 35 TOTAL SCORE: 2873 Bonus ------- Follower Combat Kills 35 Cogmind --------- Core Integrity 0/550 Matter 300/300 Energy 100/100 System Corruption 0% Temperature Cool (9) Movement Core (50) Location -8/Storage Parts ------- > --- POWER (1) -------- (None) > --- PROPULSION (4) --- (None) > --- UTILITY (4) ------ Targeting Computer > --- WEAPON (2) ------- Hammer > --- INVENTORY (5) ---- Light Nuclear Core VTOL Module Improved VTOL Module Trap Scanner Advanced Visual Processing Unit Peak State ------------ > --- POWER ------------ Improved Ion Engine > --- PROPULSION ------- Improved Flight Unit Improved VTOL Module Improved VTOL Module Improved VTOL Module > --- UTILITY ---------- Improved Sensor Array Improved Terrain Scanner Seismic Detector Targeting Computer > --- WEAPON ----------- Heavy Assault Rifle Rocket Launcher > --- INVENTORY -------- Ion Engine Wheel VTOL Module Trap Scanner Advanced Visual Processing Unit [Rating: 30] Favorites ----------- Power Cooled Ion Engine Engine Cooled Ion Engine Propulsion Aluminum Leg Leg Aluminum Leg Wheel Wheel Flight Unit Improved VTOL Module Utility Seismic Detector Device Seismic Detector Processor Targeting Computer Weapon Small Laser Energy Gun Small Laser Ballistic Gun Heavy Assault Rifle Launcher Rocket Launcher Special Weapon Mining Laser Impact Weapon Hammer Build | -11 -10 -9 -8 -8 ------- Run | Jun Mat Mat Mat Sto Slots Evolved 4 | . . 2 2 . Power . | . . . . . Propulsion 2 | . . 1 1 . Utility 2 | . . 1 1 . Weapon . | . . . . . Parts Attached 30 | 7 . 10 4 9 Power 6 | 1 . 3 1 1 Engine 6 | 1 . 3 1 1 Core . | . . . . . Reactor . | . . . . . Propulsion 14 | 2 . 5 1 6 Treads . | . . . . . Leg 8 | 2 . 5 1 . Wheel 1 | . . . . 1 Hover . | . . . . . Flight 5 | . . . . 5 Utility 4 | 2 . 1 1 . Device 3 | 2 . . 1 . Storage . | . . . . . Processor 1 | . . 1 . . Hackware . | . . . . . Protection . | . . . . . Artifact . | . . . . . Weapon 6 | 2 . 1 1 2 Energy Gun 2 | 1 . . . 1 Energy Cannon . | . . . . . Ballistic Gun 1 | . . . 1 . Ballistic Cannon . | . . . . . Launcher 1 | . . 1 . . Special Weapon 1 | 1 . . . . Impact Weapon 1 | . . . . 1 Slashing Weapon . | . . . . . Piercing Weapon . | . . . . . Special Melee Weapon . | . . . . . Unidentified Prototypes 3 | . . . . 3 Parts Lost 15 | . . 2 2 11 Power 2 | . . . 1 1 Propulsion 5 | . . . 1 4 Utility 3 | . . . . 3 Weapon 5 | . . 2 . 3 Highest Loss Streak 8 | . . 2 1 8 To Critical Strikes . | . . . . . Average Slot Usage (%) 93 | . 100 97 88 84 Engine 9 | . 14 11 4 6 Leg 27 | . 28 32 34 2 Flight 4 | . . . . 28 Device 22 | . 28 22 23 23 Processor 9 | . . 11 9 9 Energy Gun 7 | . 14 9 . 1 Ballistic Gun 2 | . . . 6 5 Launcher 2 | . . . 9 2 Special Weapon 6 | . 14 9 . . Naked Turns . | . . . . . Heaviest Build 17 | 9 9 14 17 17 Greatest Support 30 | 20 20 30 20 20 Greatest Overweight (x) 5 | . . . . 5 Average Overweight (x) . | . . . . . Largest Inventory Capacity 5 | 5 5 5 5 5 Average Capacity 5 | 5 5 5 5 5 Most Carried 5 | 5 5 5 5 5 Average Carried 4 | 3 4 4 4 4 Final Capacity 5 | 5 5 5 5 5 Final Carried 5 | 5 5 5 5 5 Class Distribution -------------------- 58% | Mutant 34% | Scavenger-Mutant 6% | Scavenger-Sprinter Dominant Class ---------------- Mutant | -10/Materials Mutant | -9/Materials Scavenger-Mutant | -8/Materials Mutant | -8/Storage Resources | -11 -10 -9 -8 -8 ----------- Run | Jun Mat Mat Mat Sto Matter Collected 659 | 270 . 120 77 192 Remotely . | . . . . . Salvage Created 917 | 160 . 360 177 220 Parts 58 | 11 . 25 14 8 Haulers Intercepted . | . . . . . Recyclers Shooed 2 | . . 2 . . Parts Field Recycled . | . . . . . Retrieved Matter . | . . . . . Parts Self-Destructed . | . . . . . Prevented . | . . . . . Kills | -11 -10 -9 -8 -8 ------- Run | Jun Mat Mat Mat Sto Combat Hostiles Destroyed 23 | . . 11 7 5 Guns 12 | . . 8 1 3 Cannons 1 | . . 1 . . AOE 10 | . . 2 6 2 Classes Destroyed 7 | 2 . 3 . 2 Worker 1 | . . . . 1 Tunneler 4 | 4 . . . . Recycler 1 | 1 . . . . Swarmer 7 | . . 4 3 . Grunt 8 | . . 3 2 3 Brawler 2 | . . . . 2 Sentry 6 | . . 4 2 . Best Kill Streak 5 | 3 . 4 4 5 Combat Bots Only 5 | . . 4 4 5 Max Kills in Single Turn 3 | 1 . 1 3 2 Gunslinging . | . . . . . Exploded 3 | . . 1 3 2 Melee . | . . . . . Uniques/NPCs Destroyed . | . . . . . Combat | -11 -10 -9 -8 -8 -------- Run | Jun Mat Mat Mat Sto Damage Taken 2253 | . . 782 219 1252 Core 740 | . . 184 43 513 Absorbed by Shields . | . . . . . Regen/Repaired (Parts) 103 | . . 103 . . Core Remaining (%) 84 | 100 100 54 . . Volleys Fired 111 | 15 1 64 8 23 Largest 2 | 2 1 1 2 2 Hottest 140 | 140 100 100 56 56 Shots Fired 119 | 16 1 64 11 27 Gun 96 | 15 . 55 3 23 Cannon . | . . . . . Launcher 14 | . . 2 8 4 Special 9 | 1 1 7 . . Kinetic 26 | . . . 3 23 Thermal 79 | 16 1 62 . . Explosive 14 | . . 2 8 4 Electromagnetic . | . . . . . Robot Hit Streak 14 | 4 . 14 2 8 Robot Miss Streak 4 | 4 . 2 2 2 Penetration Max . | . . . . . Secondary Targets . | . . . . . Shots Hit Robots 85 | 11 . 50 5 19 Core Hits 54 | 6 . 20 13 15 Critical Kills . | . . . . . Critical Parts Destroyed . | . . . . . Critical Strikes . | . . . . . Melee Attacks 2 | . . . . 2 Impact 2 | . . . . 2 Slashing . | . . . . . Piercing . | . . . . . Sneak Attacks 1 | . . . . 1 Combat Hostiles . | . . . . . Follow-up Attacks . | . . . . . Damage Inflicted 1789 | 146 . 684 382 577 Guns 920 | 122 . 495 26 277 Cannons . | . . . . . Explosions 716 | . . 113 356 247 Melee 42 | . . . . 42 Ramming 15 | . . 4 . 11 Kinetic 303 | . . . 26 277 Thermal 713 | 146 . 567 . . Explosive 716 | . . 113 356 247 Electromagnetic . | . . . . . Impact 42 | . . . . 42 Slashing . | . . . . . Piercing . | . . . . . Highest Corruption . | . . . . . Average Corruption . | . . . . . Corruption Purged . | . . . . . Corruption Blocked . | . . . . . Overload Shots . | . . . . . Overflow Damage 6 | . . 4 . 2 Projectiles 4 | . . 4 . . Explosions . | . . . . . Melee 2 | . . . . 2 Knockbacks . | . . . . . Impact . | . . . . . Kinetic . | . . . . . Secondary . | . . . . . Self-Inflicted Damage 16 | . . . 12 4 Shots 1 | . . . 1 . Rammed 4 | . . . . 4 Targets Rammed 5 | . . 1 . 4 Kicked 1 | . . 1 . . Crushed . | . . . . . Highest Temperature 44 | 40 20 40 20 44 Average Temperature 16 | 20 10 12 8 23 Received Heat Transfer 1200 | . . 327 81 792 Siege Activations . | . . . . . Robots Corrupted . | . . . . . Combat Hostiles . | . . . . . Parts Fried 1 | . . . . 1 Impact Corruptions 1 | . . . . 1 Robots Melted . | . . . . . Combat Hostiles . | . . . . . Parts Melted 3 | . . 3 . . Heat Transferred 1600 | 325 . 1275 . . Parts Sabotaged . | . . . . . Parts Stolen . | . . . . . Parts Stripped . | . . . . . Power Chain Reactions . | . . . . . Missiles Intercepted . | . . . . . Alert | -11 -10 -9 -8 -8 ------- Run | Jun Mat Mat Mat Sto Peak Influence 338 | 25 22 215 338 333 Initial 142 | . 16 9 90 142 Average 121 | 12 20 102 197 240 Maximum Alert Level 1 | . . 1 1 1 Low Security (%) 84 | 100 100 94 78 30 Level 1 15 | . . 5 21 69 Level 2 . | . . . . . Level 3 . | . . . . . Level 4 . | . . . . . Level 5 . | . . . . . High Security . | . . . . . Max Security . | . . . . . Squads Dispatched 2 | . . . . 2 Investigation . | . . . . . Extermination . | . . . . . Reinforcement . | . . . . . Assault 2 | . . . . 2 Garrison . | . . . . . Intercept . | . . . . . Searches Triggered . | . . . . . Construction Impeded . | . . . . . Haulers Reinforced . | . . . . . Active Scanning Responses . | . . . . . Cargo Convoy Interrupts . | . . . . . Stealth | -11 -10 -9 -8 -8 --------- Run | Jun Mat Mat Mat Sto Distress Signals 3 | . . 2 . 1 Communications Jammed . | . . . . . Distress Signals . | . . . . . Times Spotted 41 | . . 16 7 18 Peak Tracking Total 7 | . . 6 4 7 Tactical Retreats 1 | . . . . 1 Traps | -11 -10 -9 -8 -8 ------- Run | Jun Mat Mat Mat Sto Traps Triggered 1 | . . . . 1 Indirectly . | . . . . . Trap Hack Attempts . | . . . . . Triggered . | . . . . . Disarmed . | . . . . . Reprogrammed . | . . . . . Reused . | . . . . . Traps Extracted . | . . . . . Installed . | . . . . . Triggered . | . . . . . Machines | -11 -10 -9 -8 -8 ---------- Run | Jun Mat Mat Mat Sto Machines Disabled 1 | . . . 1 . Max in Single Turn 1 | . . . 1 . Machines Repaired . | . . . . . Machines Sabotaged . | . . . . . Overloaded Fab Kills . | . . . . . Hacking | -11 -10 -9 -8 -8 --------- Run | Jun Mat Mat Mat Sto Machines Accessed 8 | . 1 6 . 1 Terminals 5 | . 1 3 . 1 Fabricators . | . . . . . Repair Stations 1 | . . 1 . . Recycling Units 1 | . . 1 . . Scanalyzers 1 | . . 1 . . Garrison Access . | . . . . . Total Hacks 25 | . 3 19 . 3 Successful 13 | . 1 12 . . Failed 12 | . 2 7 . 3 Catastrophic 2 | . 1 1 . . Database Lockouts . | . . . . . Manual 12 | . . 7 . 5 Terminals 13 | . 3 7 . 3 Fabricators . | . . . . . Repair Stations 4 | . . 4 . . Recycling Units 4 | . . 4 . . Scanalyzers 4 | . . 4 . . Garrison Access . | . . . . . Terminal Hacks 4 | . 1 3 . . Branch Access Points 1 | . . 1 . . Emergency Access Points 1 | . . 1 . . Zone Layout 2 | . 1 1 . . Fabricator Hacks . | . . . . . Repair Station Hacks 4 | . . 4 . . Scan Component 2 | . . 2 . . Repair 2 | . . 2 . . Recycling Unit Hacks 1 | . . 1 . . Report Inventory 1 | . . 1 . . Scanalyzer 2 | . . 2 . . Insert Component 1 | . . 1 . . Analyze 1 | . . 1 . . Garrison Access Hacks . | . . . . . Unauthorized Hacks 2 | . . 2 . . Terminals . | . . . . . Fabricators . | . . . . . Repair Stations . | . . . . . Recycling Units 2 | . . 2 . . Monitor 1 | . . 1 . . Mask 1 | . . 1 . . Scanalyzers . | . . . . . Garrison Access . | . . . . . Data Cores Recovered . | . . . . . Used . | . . . . . Hacking Detections 8 | . 1 6 . 1 Full Trace Events . | . . . . . Feedback Events . | . . . . . Feedback Blocked . | . . . . . Robot Schematics Acquired . | . . . . . Robots Built . | . . . . . Authchips . | . . . . . Time . | . . . . . Total Robot Build Rating . | . . . . . Part Schematics Acquired 1 | . . 1 . . Parts Built . | . . . . . Authchips . | . . . . . Time . | . . . . . Total Part Build Rating . | . . . . . Parts Repaired 2 | . . 2 . . Time 52 | . . 52 . . Parts Recycled . | . . . . . Recycled Matter . | . . . . . Retrieved Matter . | . . . . . Retrieved Components . | . . . . . Parts Scanalyzed 1 | . . 1 . . Part Schematics Acquired 1 | . . 1 . . Parts Damaged . | . . . . . Bothacking | -11 -10 -9 -8 -8 ------------ Run | Jun Mat Mat Mat Sto Used RIF Installer . | . . . . . Robots Hacked . | . . . . . Non-combat . | . . . . . Combat . | . . . . . Robot Hacks Applied . | . . . . . Relay Couplers Released . | . . . . . Fabnet Peak Effective % . | . . . . . Robots Rewired . | . . . . . Allies Hacked . | . . . . . Hacks Repelled . | . . . . . Allies | -11 -10 -9 -8 -8 -------- Run | Jun Mat Mat Mat Sto Total Allies 2 | . . . . 2 Largest Group 2 | . . . . 2 Highest-Rated Group 62 | . . . . 62 Highest-Rated Ally 31 | . . . . 31 Total Orders . | . . . . . Ally Attacks 17 | . . . . 17 Total Damage 337 | . . . . 337 Kills 2 | . . . . 2 Allies Corrupted . | . . . . . Allies Melted . | . . . . . Intel | -11 -10 -9 -8 -8 ------- Run | Jun Mat Mat Mat Sto Robot Analysis Total . | . . . . . Derelict Logs Recovered . | . . . . . Drone Launches . | . . . . . Drone Recoveries . | . . . . . Exploration | -11 -10 -9 -8 -8 ------------- Run | Jun Mat Mat Mat Sto Turns Passed 1383 | 160 67 758 199 199 Spaces Moved 775 | 97 51 390 126 111 Core 11 | 9 . . . 2 Treads . | . . . . . Legs 665 | 88 51 390 126 10 Wheels 29 | . . . . 29 Hover . | . . . . . Flight 70 | . . . . 70 Fastest Speed 27 | 50 120 120 120 27 Average Speed 112 | 113 120 120 120 71 Slowest Speed 300 | 120 120 120 120 300 Overloaded Moves . | . . . . . Propulsion Burnouts . | . . . . . Robots Hopped . | . . . . . Cave-ins Triggered . | . . . . . Exploration Rate (%) 15 | 4 11 36 11 15 Regions Visited 4 Branch Regions 1 Pre-discovered Areas . | . . . . . Known Exits Taken . | . . . . . Unknown Exits Taken 4 | 1 1 1 1 . Scrap Searched . | . . . . . Spaces Dug 4 | . 1 3 . . Terrain Destroyed 134 | . 1 23 74 36 Melee . | . . . . . Projectile 4 | . 1 3 . . AOE 130 | . . 20 74 36 Terrain Rammed . | . . . . . Walls Destroyed . | . . . . . Machines Disabled . | . . . . . Actions | -11 -10 -9 -8 -8 --------- Run | Jun Mat Mat Mat Sto Total 1146 | 128 55 602 162 199 Wait 175 | . . 128 22 25 Move 771 | 96 50 389 125 111 Hop . | . . . . . Pick Up 21 | 10 2 5 3 1 Fast Attach 12 | 2 . 2 1 7 Attach 12 | 5 . 3 3 1 Detach 1 | . . . . 1 Swap 6 | . . 5 . 1 Drop 12 | . 2 5 . 5 Fire 111 | 15 1 64 8 23 Melee 2 | . . . . 2 Ram 4 | . . . . 4 Kick 1 | . . 1 . . Crush . | . . . . . Escape Stasis 18 | . . . . 18 Rewire . | . . . . . Trap . | . . . . . Miscellaneous . | . . . . . Route ------- -11/Junkyard -10/Materials -9/Materials (discovered 3 exits: [*Mat] / Min x2) -8/Materials -8/Storage History --------- Turn | Location | Event 9 | -11/Junkyard | Discovered new exit (range 14) 161 | -11/Junkyard | Entered Materials 190 | -10/Materials | Discovered new exit (range 11) 228 | -10/Materials | Entered another Materials area 228 | -9/Materials | Evolved 2 slots: Propulsion x1, Utility x1 289 | -9/Materials | Identified exit to Mines 756 | -9/Materials | Repaired Aluminum Leg 783 | -9/Materials | Repaired Aluminum Leg 804 | -9/Materials | Build established: Mutant 940 | -9/Materials | Discovered new exit (range 7) 986 | -9/Materials | Entered another Materials area 986 | -8/Materials | Evolved 2 slots: Propulsion x1, Utility x1 1142 | -8/Materials | Discovered new exit (range 16) 1185 | -8/Materials | Entered Storage 1193 | -8/Storage | Met a pair of Derelict thieves 1344 | -8/Storage | Core integrity fell below 50% 1375 | -8/Storage | Core integrity fell below 20% 1384 | -8/Storage | Destroyed by G-47 Trooper with Particle Gun Last Messages --------------- 01347_ M-28 Smith repairs G-50 Soldier. 01350_ Wheel destroyed. 01351_ Imp. Sensor Array destroyed. 01354_ Sneak attack on K-01 Serf. 01354_ Destroyed Wheel. 01354_ K-01 Serf system corrupted by crushing effect. 01354_ Imp. VTOL Module destroyed. 01354_ U-05 Engineer builds a Door. 01355_ K-01 Serf system terminally corrupted. 01355_ Med. Matter Pod fried. 01356_ K-01 Serf collects debris. 01357_ Imp. VTOL Module destroyed. 01358_ M-28 Smith repairs I-25 Savior. 01361_ K-01 Serf collects debris. 01371_ Imp. Flight Unit destroyed. 01371_ Prc. Beam Rifle destroyed. 01373_ Critical hit (Burn: +37). 01376_ Seismic Detector destroyed. 01377_ Critical hit (Burn: +37). 01383_ Dropped Rnf. Ion Engine. Map ----- +----------------------------------------------------+ | | | | | | | | | | | | | | | | | | | ????????????????????????????????????????######???? | | ????????????????????????????????????????# #### | | ????????????????????????????????????????# | | ??????????????????????????????????#?????# ^ | | ??????????????????????????????????????#?# | | ?????????????????????????????????????#??# #### | | ????????????????????????????????????????## ##?## | | ??????????????????????????????????#?????## #??#T | | ?????????????????????????????????????????# #?### | | ?????????????????????????????????????????# #?# | | ????????????????????????????????????#????# #?# = | | ????????????????????????????????#????????# #?#= | | ??????????????????????#########??????????# #?# = | | ??????????????????????# #??????????# #?### | | ??????????????????????# ##????###### #?#?? | | ??????????????????????# #### # ## ##??? | | ??????????????????????# @ ###########= #??? | | ??????????????????????# * # * % %= #??? | | ??????????????????????# gg + % %! ##?# | | ??????????????????????# g # %* #??? | | ??????????????????????# g #% #######[ #?#? | | ??????????????????????# g # # * #=#######??? | | ??????????????????????# i # ## ####????#???? | | ??????????????????????# # # #????????????? | | ??????????????????????#########% ##?????????????? | | ??????????????????????????????# #??????????????? | | ??????????????????????????????# ^ #?????? ???????? | | ??????????????????????????????# #???????#??????? | | ??????????????????????????????# +??????????????? | | ?????????????????????????????? #???#??????????? | | ??????????????????????????????# #????????#?????? | | ??????????????????????????????# #????#????#??? ? | | ??????????????????????????????# #??????????????? | | ??????????????????????????????? ???????????????? | | ??????????????????????????????? ???????????????? | | ?????????????????????????????????????????????????? | | ?????????????????????????????????????????????????? | | ?????????????????????????????????????????????????? | | ?????????????????????????????????????????????????? | | ?????????????????????????????????????????????????? | | ?????????????????????????????????????????????????? | +----------------------------------------------------+ Best States ------------- Heat Dissipation 31 Energy Generation 14 Energy Capacity 280 Matter Stores 300 Matter Capacity 300 Sight Range 16 Robot Scan Range 15 Terrain Scan Range 16 Terrain Scan Density 10 Evasion (%) 64 Targeting Accuracy 5 Item Schematics ----------------- Cld. Ion Engine | -9/Materials | Scanalyzed Robot Schematics ------------------ None Fabricated ------------ Nothing Alien Tech Used ----------------- None Achievements -------------- None Challenges ------------ None Game ------ Seed SingularityQuantumPropulsion Manual? 0 Play Time 00:27:50 Cumulative 61.0 hours Start 2023.07.21 @ 12:25:53 End 2023.07.21 @ 12:57:10 Sessions 1 Manual Loads 0 Difficulty Rogue Special Mode None Game No. 82 Rogue 82 Adventurer 0 Explorer 0 Win Type - Total 0 Types 0/0/0/0/0/0/0/0/0 Lore% 22 Gallery% 37 Achievement% 23 Wizard Run 0 Options --------- ASCII 0 Keyboard 0 Movement Mouse Keybinds 0 Fullscreen 1 Font 24/Smallcaps Map View 76x50 Tactical HUD 1 Map Filters NONE Filters NONE Steam 1 RUN: 9252165b-df58-4a50-b4a2-f026bc46193a